[Event "Titled Tuesday Blitz July 4 Early 2023"]
[White "Ahn, Hongjin"]
[Black "Liu, Casper"]
[WhiteFideId "13201492"]
[BlackFideId "1454153"]
[WhiteElo "2375"]
[BlackElo "2512"]
[Result "1-0"]
[Round "8"]
[TimeControl "180+2"]
[Date "2023.07.04"]
[WhiteClock "0:00:08"]
[BlackClock "0:00:27"]
[Board "129"]

1. f4 {[%clk 0:02:59]}  b6 {[%clk 0:02:56]} 2. Nf3 {[%clk 0:03:00]}  Bb7 {[%clk 0:02:57]} 3. g3 {[%clk 0:03:00]}  e6 {[%clk 0:02:56]} 4. Bg2 {[%clk 0:03:01]}  Nf6 {[%clk 0:02:56]} 5. O-O {[%clk 0:03:02]}  Be7 {[%clk 0:02:57]} 6. d3 {[%clk 0:03:02]}  d5 {[%clk 0:02:56]} 7. Nc3 {[%clk 0:03:00]}  O-O {[%clk 0:02:55]} 8. Qe1 {[%clk 0:03:00]}  Na6 {[%clk 0:02:52]} 9. a3 {[%clk 0:02:57]}  Nc5 {[%clk 0:02:52]} 10. b4 {[%clk 0:02:53]}  Ncd7 {[%clk 0:02:52]} 11. e4 {[%clk 0:02:54]}  dxe4 {[%clk 0:02:51]} 12. dxe4 {[%clk 0:02:54]}  a5 {[%clk 0:02:49]} 13. b5 {[%clk 0:02:53]}  Nc5 {[%clk 0:02:43]} 14. Bb2 {[%clk 0:02:47]}  Ncxe4 {[%clk 0:02:38]} 15. Nxe4 {[%clk 0:01:21]}  Nxe4 {[%clk 0:02:39]} 16. Ng5 {[%clk 0:00:52]}  Nd6 {[%clk 0:01:37]} 17. Bxb7 {[%clk 0:00:46]}  Nxb7 {[%clk 0:01:37]} 18. Qe4 {[%clk 0:00:04]}  Bxg5 {[%clk 0:01:28]} 19. fxg5 {[%clk 0:00:03]}  Nd6 {[%clk 0:01:23]} 20. Qe5 {[%clk 0:00:02]}  Ne8 {[%clk 0:01:20]} 21. Rad1 {[%clk 0:00:01]}  Qe7 {[%clk 0:01:20]} 22. Kg2 {[%clk 0:00:01]}  a4 {[%clk 0:01:11]} 23. h4 {[%clk 0:00:01]}  Qc5 {[%clk 0:01:11]} 24. h5 {[%clk 0:00:01]}  Qxc2+ {[%clk 0:00:58]} 25. Kh3 {[%clk 0:00:02]}  Qc5 {[%clk 0:00:59]} 26. h6 {[%clk 0:00:02]}  Qxe5 {[%clk 0:00:59]} 27. Bxe5 {[%clk 0:00:03]}  Ra5 {[%clk 0:00:57]} 28. Rd7 {[%clk 0:00:02]}  Rxb5 {[%clk 0:00:54]} 29. hxg7 {[%clk 0:00:02]}  Nxg7 {[%clk 0:00:52]} 30. Bf6 {[%clk 0:00:03]}  Nf5 {[%clk 0:00:47]} 31. Rfd1 {[%clk 0:00:01]}  Rb3 {[%clk 0:00:46]} 32. Rd8 {[%clk 0:00:01]}  Rxg3+ {[%clk 0:00:46]} 33. Kh2 {[%clk 0:00:02]}  Nd6 {[%clk 0:00:30]} 34. Rxf8+ {[%clk 0:00:01]}  Kxf8 {[%clk 0:00:30]} 35. Kxg3 {[%clk 0:00:02]}  Ke8 {[%clk 0:00:30]} 36. Kf4 {[%clk 0:00:02]}  Kd7 {[%clk 0:00:30]} 37. Be5 {[%clk 0:00:02]}  b5 {[%clk 0:00:28]} 38. Bxd6 {[%clk 0:00:03]}  cxd6 {[%clk 0:00:28]} 39. Rh1 {[%clk 0:00:04]}  Kc6 {[%clk 0:00:26]} 40. Rxh7 {[%clk 0:00:04]}  Kc5 {[%clk 0:00:27]} 41. Rxf7 {[%clk 0:00:04]}  Kc4 {[%clk 0:00:28]} 42. g6 {[%clk 0:00:04]}  b4 {[%clk 0:00:28]} 43. axb4 {[%clk 0:00:04]}  a3 {[%clk 0:00:29]} 44. Ra7 {[%clk 0:00:05]}  Kb3 {[%clk 0:00:29]} 45. g7 {[%clk 0:00:05]}  a2 {[%clk 0:00:30]} 46. g8=Q {[%clk 0:00:05]}  Kb2 {[%clk 0:00:31]} 47. Qg7+ {[%clk 0:00:04]}  Kb1 {[%clk 0:00:31]} 48. Rxa2 {[%clk 0:00:04]}  Kxa2 {[%clk 0:00:31]} 49. b5 {[%clk 0:00:05]}  e5+ {[%clk 0:00:31]} 50. Ke3 {[%clk 0:00:06]}  Ka3 {[%clk 0:00:32]} 51. b6 {[%clk 0:00:06]}  d5 {[%clk 0:00:26]} 52. b7 {[%clk 0:00:07]}  d4+ {[%clk 0:00:26]} 53. Kd3 {[%clk 0:00:08]}  e4+ {[%clk 0:00:26]} 54. Kxd4 {[%clk 0:00:08]}  e3 {[%clk 0:00:26]} 55. b8=Q {[%clk 0:00:08]}  e2 {[%clk 0:00:27]} 56. Qga7# {[%clk 0:00:08]} 1-0


[Site "https://www.chess.com"]

[Event "Titled Tuesday Blitz July 4 Early 2023"]
[White "Toolin, Christopher"]
[Black "Yedidia, Daniel"]
[WhiteFideId "2024543"]
[BlackFideId "30905907"]
[WhiteElo "2355"]
[BlackElo "2495"]
[Result "1-0"]
[Round "8"]
[TimeControl "180+2"]
[Date "2023.07.04"]
[WhiteClock "0:00:15"]
[BlackClock "0:00:02"]
[Board "132"]

1. Nf3 {[%clk 0:03:00]}  b6 {[%clk 0:02:59]} 2. d4 {[%clk 0:02:58]}  Nf6 {[%clk 0:02:58]} 3. c4 {[%clk 0:02:56]}  e6 {[%clk 0:02:58]} 4. a3 {[%clk 0:02:57]}  Bb7 {[%clk 0:02:58]} 5. Nc3 {[%clk 0:02:57]}  c5 {[%clk 0:02:59]} 6. d5 {[%clk 0:02:51]}  exd5 {[%clk 0:02:58]} 7. cxd5 {[%clk 0:02:52]}  d6 {[%clk 0:02:58]} 8. g3 {[%clk 0:02:50]}  g6 {[%clk 0:02:59]} 9. Bg2 {[%clk 0:02:51]}  Bg7 {[%clk 0:02:59]} 10. O-O {[%clk 0:02:51]}  O-O {[%clk 0:03:00]} 11. Nd2 {[%clk 0:02:48]}  Ne8 {[%clk 0:02:50]} 12. Nc4 {[%clk 0:02:43]}  Nc7 {[%clk 0:02:49]} 13. a4 {[%clk 0:02:40]}  Ba6 {[%clk 0:02:45]} 14. Qb3 {[%clk 0:02:26]}  Re8 {[%clk 0:02:41]} 15. e4 {[%clk 0:02:22]}  Qe7 {[%clk 0:01:44]} 16. Bf4 {[%clk 0:02:17]}  Bxc4 {[%clk 0:01:42]} 17. Qxc4 {[%clk 0:02:17]}  Nd7 {[%clk 0:01:43]} 18. Rfe1 {[%clk 0:01:57]}  a6 {[%clk 0:01:42]} 19. Qb3 {[%clk 0:01:53]}  Rab8 {[%clk 0:01:37]} 20. h4 {[%clk 0:01:35]}  h6 {[%clk 0:01:36]} 21. Bh3 {[%clk 0:01:19]}  Ne5 {[%clk 0:01:31]} 22. Bxe5 {[%clk 0:01:11]}  Bxe5 {[%clk 0:01:24]} 23. Qc2 {[%clk 0:01:09]}  b5 {[%clk 0:01:23]} 24. axb5 {[%clk 0:01:09]}  axb5 {[%clk 0:01:23]} 25. Ra7 {[%clk 0:01:07]}  b4 {[%clk 0:01:17]} 26. Nd1 {[%clk 0:01:01]}  Ra8 {[%clk 0:01:17]} 27. Qa4 {[%clk 0:00:56]}  Rxa7 {[%clk 0:01:06]} 28. Qxa7 {[%clk 0:00:57]}  Nxd5 {[%clk 0:01:02]} 29. Qa4 {[%clk 0:00:33]}  Nc7 {[%clk 0:00:43]} 30. b3 {[%clk 0:00:31]}  Ne6 {[%clk 0:00:40]} 31. Ne3 {[%clk 0:00:30]}  Rd8 {[%clk 0:00:30]} 32. Nd5 {[%clk 0:00:30]}  Qd7 {[%clk 0:00:17]} 33. Qa5 {[%clk 0:00:22]}  Kg7 {[%clk 0:00:16]} 34. f4 {[%clk 0:00:20]}  Bd4+ {[%clk 0:00:16]} 35. Kh2 {[%clk 0:00:20]}  Re8 {[%clk 0:00:07]} 36. f5 {[%clk 0:00:19]}  gxf5 {[%clk 0:00:02]} 37. exf5 {[%clk 0:00:19]}  Bf6 {[%clk 0:00:01]} 38. fxe6 {[%clk 0:00:17]}  fxe6 {[%clk 0:00:02]} 39. Nf4 {[%clk 0:00:16]}  Rf8 {[%clk 0:00:02]} 40. Nxe6+ {[%clk 0:00:15]}  Kh7 {[%clk 0:00:02]} 41. Nxf8+ {[%clk 0:00:15]} 1-0


[Site "https://www.chess.com"]

[Event "Titled Tuesday Blitz July 4 Early 2023"]
[White "Gheorghiu, Calin"]
[Black "Cardozo Munar, Carlos Eduardo"]
[WhiteFideId "1200305"]
[BlackFideId "4409477"]
[WhiteElo "2490"]
[BlackElo "2330"]
[Result "0-1"]
[Round "8"]
[TimeControl "180+2"]
[Date "2023.07.04"]
[WhiteClock "0:00:31"]
[BlackClock "0:01:18"]
[Board "133"]

1. e4 {[%clk 0:02:56]}  e6 {[%clk 0:02:58]} 2. d4 {[%clk 0:02:56]}  d5 {[%clk 0:02:59]} 3. Nd2 {[%clk 0:02:56]}  Nf6 {[%clk 0:02:58]} 4. e5 {[%clk 0:02:55]}  Nfd7 {[%clk 0:02:59]} 5. c3 {[%clk 0:02:55]}  c5 {[%clk 0:02:59]} 6. Ngf3 {[%clk 0:02:55]}  Nc6 {[%clk 0:03:00]} 7. Bd3 {[%clk 0:02:55]}  Qb6 {[%clk 0:02:57]} 8. dxc5 {[%clk 0:02:55]}  Nxc5 {[%clk 0:02:56]} 9. Bc2 {[%clk 0:02:55]}  Bd7 {[%clk 0:02:56]} 10. O-O {[%clk 0:02:51]}  g6 {[%clk 0:02:55]} 11. b4 {[%clk 0:02:40]}  Ne4 {[%clk 0:02:47]} 12. Nxe4 {[%clk 0:02:36]}  dxe4 {[%clk 0:02:48]} 13. Bxe4 {[%clk 0:02:36]}  Bg7 {[%clk 0:02:49]} 14. Bf4 {[%clk 0:02:28]}  Qc7 {[%clk 0:02:40]} 15. Re1 {[%clk 0:02:20]}  O-O {[%clk 0:02:32]} 16. b5 {[%clk 0:02:11]}  Na5 {[%clk 0:02:31]} 17. a4 {[%clk 0:02:07]}  Rad8 {[%clk 0:02:24]} 18. Qe2 {[%clk 0:01:26]}  b6 {[%clk 0:02:22]} 19. Rac1 {[%clk 0:01:16]}  Bc8 {[%clk 0:02:16]} 20. Bg5 {[%clk 0:01:12]}  Rd7 {[%clk 0:02:11]} 21. Qe3 {[%clk 0:01:12]}  Nc4 {[%clk 0:02:07]} 22. Qf4 {[%clk 0:01:09]}  Nxe5 {[%clk 0:01:59]} 23. Nxe5 {[%clk 0:01:09]}  Bxe5 {[%clk 0:01:59]} 24. Qh4 {[%clk 0:01:09]}  Bg7 {[%clk 0:01:54]} 25. Re3 {[%clk 0:00:59]}  Bb7 {[%clk 0:01:50]} 26. Rh3 {[%clk 0:00:54]}  h5 {[%clk 0:01:49]} 27. Bxb7 {[%clk 0:00:50]}  Qxb7 {[%clk 0:01:47]} 28. Bf6 {[%clk 0:00:51]}  Qd5 {[%clk 0:01:39]} 29. Re3 {[%clk 0:00:46]}  Rc8 {[%clk 0:01:29]} 30. c4 {[%clk 0:00:31]}  Rxc4 {[%clk 0:01:18]} 0-1


[Site "https://www.chess.com"]

[Event "Titled Tuesday Blitz July 4 Early 2023"]
[White "Mica, Marek"]
[Black "Rodriguez Santiago, Jaime"]
[WhiteFideId "382884"]
[BlackFideId "3100898"]
[WhiteElo "2485"]
[BlackElo "2324"]
[Result "1-0"]
[Round "8"]
[TimeControl "180+2"]
[Date "2023.07.04"]
[WhiteClock "0:02:12"]
[BlackClock "0:00:20"]
[Board "134"]

1. d4 {[%clk 0:03:00]}  Nf6 {[%clk 0:02:59]} 2. c4 {[%clk 0:03:01]}  e6 {[%clk 0:02:59]} 3. Nf3 {[%clk 0:03:01]}  d5 {[%clk 0:02:59]} 4. g3 {[%clk 0:03:01]}  dxc4 {[%clk 0:02:59]} 5. Bg2 {[%clk 0:03:01]}  c5 {[%clk 0:03:00]} 6. O-O {[%clk 0:02:59]}  Nc6 {[%clk 0:02:59]} 7. dxc5 {[%clk 0:02:59]}  Qxd1 {[%clk 0:02:58]} 8. Rxd1 {[%clk 0:03:00]}  Bxc5 {[%clk 0:02:57]} 9. Nbd2 {[%clk 0:03:01]}  c3 {[%clk 0:02:56]} 10. bxc3 {[%clk 0:03:02]}  O-O {[%clk 0:02:56]} 11. Nb3 {[%clk 0:03:01]}  Be7 {[%clk 0:02:57]} 12. Nfd4 {[%clk 0:02:58]}  Bd7 {[%clk 0:02:51]} 13. a4 {[%clk 0:02:55]}  Rfc8 {[%clk 0:02:46]} 14. Nb5 {[%clk 0:02:51]}  Be8 {[%clk 0:02:39]} 15. Bf4 {[%clk 0:02:47]}  e5 {[%clk 0:02:31]} 16. Be3 {[%clk 0:02:47]}  a6 {[%clk 0:02:26]} 17. Nd6 {[%clk 0:02:44]}  Bxd6 {[%clk 0:02:21]} 18. Rxd6 {[%clk 0:02:45]}  Rab8 {[%clk 0:02:16]} 19. Bb6 {[%clk 0:02:41]}  Nd7 {[%clk 0:02:07]} 20. a5 {[%clk 0:02:42]}  Nxb6 {[%clk 0:02:06]} 21. axb6 {[%clk 0:02:43]}  f6 {[%clk 0:02:01]} 22. Nc5 {[%clk 0:02:35]}  Kf7 {[%clk 0:01:39]} 23. Rad1 {[%clk 0:02:31]}  Ne7 {[%clk 0:01:09]} 24. Nxb7 {[%clk 0:02:27]}  Rxc3 {[%clk 0:01:08]} 25. Nd8+ {[%clk 0:02:24]}  Kg6 {[%clk 0:00:42]} 26. b7 {[%clk 0:02:23]}  Rb3 {[%clk 0:00:39]} 27. Rxa6 {[%clk 0:02:18]}  Nf5 {[%clk 0:00:28]} 28. Ra8 {[%clk 0:02:13]}  R3xb7 {[%clk 0:00:20]} 29. Bxb7 {[%clk 0:02:12]} 1-0


[Site "https://www.chess.com"]

[Event "Titled Tuesday Blitz July 4 Early 2023"]
[White "Torres Hernandez, Leslie Carolin"]
[Black "Rizzo, Tobias"]
[WhiteFideId "8400504"]
[BlackFideId "30942691"]
[WhiteElo "2317"]
[BlackElo "2481"]
[Result "1-0"]
[Round "8"]
[TimeControl "180+2"]
[Date "2023.07.04"]
[WhiteClock "0:00:44"]
[BlackClock "0:00:09"]
[Board "135"]

1. e4 {[%clk 0:02:57]}  c5 {[%clk 0:03:00]} 2. Nf3 {[%clk 0:02:56]}  e6 {[%clk 0:03:00]} 3. d4 {[%clk 0:02:56]}  cxd4 {[%clk 0:03:01]} 4. Nxd4 {[%clk 0:02:56]}  Nf6 {[%clk 0:03:02]} 5. Bd3 {[%clk 0:02:56]}  Nc6 {[%clk 0:03:02]} 6. Nxc6 {[%clk 0:02:56]}  bxc6 {[%clk 0:03:03]} 7. O-O {[%clk 0:02:55]}  d5 {[%clk 0:03:03]} 8. Nc3 {[%clk 0:02:56]}  Be7 {[%clk 0:03:03]} 9. Qe2 {[%clk 0:02:52]}  O-O {[%clk 0:03:03]} 10. Rd1 {[%clk 0:02:51]}  Qb6 {[%clk 0:02:58]} 11. b3 {[%clk 0:02:49]}  e5 {[%clk 0:02:12]} 12. exd5 {[%clk 0:02:27]}  Bg4 {[%clk 0:02:08]} 13. Qxe5 {[%clk 0:02:27]}  Bxd1 {[%clk 0:02:04]} 14. Qxe7 {[%clk 0:02:21]}  Rfe8 {[%clk 0:02:00]} 15. Qd6 {[%clk 0:02:07]}  Bxc2 {[%clk 0:01:52]} 16. Bf1 {[%clk 0:01:57]}  Qd4 {[%clk 0:01:36]} 17. Bb2 {[%clk 0:01:53]}  Rad8 {[%clk 0:01:15]} 18. Qg3 {[%clk 0:01:46]}  Ne4 {[%clk 0:00:22]} 19. Qf4 {[%clk 0:01:42]}  c5 {[%clk 0:00:16]} 20. Nd1 {[%clk 0:01:37]}  Qxd5 {[%clk 0:00:13]} 21. Ne3 {[%clk 0:01:37]}  Qd2 {[%clk 0:00:13]} 22. Bb5 {[%clk 0:01:31]}  Rf8 {[%clk 0:00:07]} 23. Rf1 {[%clk 0:01:25]}  Bd3 {[%clk 0:00:06]} 24. Bxd3 {[%clk 0:01:19]}  Qxd3 {[%clk 0:00:06]} 25. Qg4 {[%clk 0:01:16]}  f6 {[%clk 0:00:07]} 26. h4 {[%clk 0:01:05]}  Nd2 {[%clk 0:00:03]} 27. Rc1 {[%clk 0:01:00]}  Qe4 {[%clk 0:00:04]} 28. Qg3 {[%clk 0:00:57]}  Rfe8 {[%clk 0:00:02]} 29. Bxf6 {[%clk 0:00:54]}  Rd7 {[%clk 0:00:02]} 30. Bb2 {[%clk 0:00:52]}  c4 {[%clk 0:00:02]} 31. bxc4 {[%clk 0:00:47]}  a6 {[%clk 0:00:02]} 32. c5 {[%clk 0:00:43]}  Rc7 {[%clk 0:00:02]} 33. Qxc7 {[%clk 0:00:42]}  Re7 {[%clk 0:00:02]} 34. Qd8+ {[%clk 0:00:42]}  Kf7 {[%clk 0:00:02]} 35. Qxd2 {[%clk 0:00:43]}  Qc6 {[%clk 0:00:02]} 36. Qd5+ {[%clk 0:00:42]}  Qxd5 {[%clk 0:00:03]} 37. Nxd5 {[%clk 0:00:42]}  Rd7 {[%clk 0:00:04]} 38. c6 {[%clk 0:00:42]}  Rd8 {[%clk 0:00:05]} 39. c7 {[%clk 0:00:42]}  Rc8 {[%clk 0:00:05]} 40. Nb6 {[%clk 0:00:43]}  Ke7 {[%clk 0:00:06]} 41. Nxc8+ {[%clk 0:00:43]}  Kd7 {[%clk 0:00:07]} 42. Nb6+ {[%clk 0:00:44]}  Ke7 {[%clk 0:00:08]} 43. c8=Q {[%clk 0:00:45]}  Kf7 {[%clk 0:00:08]} 44. Qf5+ {[%clk 0:00:43]}  Ke7 {[%clk 0:00:08]} 45. Rc7+ {[%clk 0:00:44]}  Kd6 {[%clk 0:00:09]} 46. Qd7# {[%clk 0:00:44]} 1-0


[Site "https://www.chess.com"]

[Event "Titled Tuesday Blitz July 4 Early 2023"]
[White "Balla, Tamas-Kristof"]
[Black "Osinovsky, Stepan"]
[WhiteFideId "1208497"]
[BlackFideId "4157354"]
[WhiteElo "2467"]
[BlackElo "2303"]
[Result "0-1"]
[Round "8"]
[TimeControl "180+2"]
[Date "2023.07.04"]
[WhiteClock "0:00:31"]
[BlackClock "0:00:14"]
[Board "138"]

1. e4 {[%clk 0:03:00]}  e6 {[%clk 0:02:57]} 2. d4 {[%clk 0:03:01]}  d5 {[%clk 0:02:58]} 3. Nd2 {[%clk 0:03:01]}  Nc6 {[%clk 0:02:58]} 4. c3 {[%clk 0:03:00]}  Nf6 {[%clk 0:02:54]} 5. e5 {[%clk 0:03:00]}  Nd7 {[%clk 0:02:53]} 6. Bd3 {[%clk 0:02:56]}  b6 {[%clk 0:02:51]} 7. f4 {[%clk 0:02:51]}  a5 {[%clk 0:02:46]} 8. Qe2 {[%clk 0:02:48]}  Bb7 {[%clk 0:02:42]} 9. Ngf3 {[%clk 0:02:48]}  f5 {[%clk 0:02:20]} 10. exf6 {[%clk 0:02:31]}  Qxf6 {[%clk 0:02:19]} 11. Ne5 {[%clk 0:02:32]}  Ndxe5 {[%clk 0:02:00]} 12. fxe5 {[%clk 0:02:27]}  Qh4+ {[%clk 0:01:59]} 13. g3 {[%clk 0:02:27]}  Qh3 {[%clk 0:01:54]} 14. Nf3 {[%clk 0:02:19]}  Be7 {[%clk 0:01:53]} 15. Bf4 {[%clk 0:01:59]}  Qh5 {[%clk 0:00:57]} 16. h3 {[%clk 0:01:58]}  g5 {[%clk 0:00:52]} 17. Be3 {[%clk 0:01:49]}  g4 {[%clk 0:00:27]} 18. Ng1 {[%clk 0:01:13]}  O-O-O {[%clk 0:00:19]} 19. O-O-O {[%clk 0:01:12]}  Nxe5 {[%clk 0:00:16]} 20. dxe5 {[%clk 0:01:07]}  d4 {[%clk 0:00:16]} 21. Ba6 {[%clk 0:00:56]}  dxe3 {[%clk 0:00:15]} 22. Bxb7+ {[%clk 0:00:57]}  Kxb7 {[%clk 0:00:15]} 23. Rxd8 {[%clk 0:00:34]}  Rxd8 {[%clk 0:00:16]} 24. Qxe3 {[%clk 0:00:31]}  Bg5 {[%clk 0:00:14]} 0-1


[Site "https://www.chess.com"]

[Event "Titled Tuesday Blitz July 4 Early 2023"]
[White "Schut, Han"]
[Black "Nunez V, Gustavo Eduardo"]
[WhiteFideId "1005561"]
[BlackFideId "4403690"]
[WhiteElo "2302"]
[BlackElo "2466"]
[Result "0-1"]
[Round "8"]
[TimeControl "180+2"]
[Date "2023.07.04"]
[WhiteClock "0:00:24"]
[BlackClock "0:02:07"]
[Board "139"]

1. e4 {[%clk 0:03:00]}  c5 {[%clk 0:02:59]} 2. Nf3 {[%clk 0:03:01]}  Nc6 {[%clk 0:02:59]} 3. d4 {[%clk 0:03:01]}  cxd4 {[%clk 0:03:00]} 4. Nxd4 {[%clk 0:03:02]}  e5 {[%clk 0:03:00]} 5. Nb5 {[%clk 0:03:02]}  a6 {[%clk 0:03:00]} 6. Nd6+ {[%clk 0:03:02]}  Bxd6 {[%clk 0:03:01]} 7. Qxd6 {[%clk 0:03:03]}  Qf6 {[%clk 0:03:01]} 8. Qd2 {[%clk 0:03:03]}  Nge7 {[%clk 0:03:00]} 9. Nc3 {[%clk 0:03:03]}  O-O {[%clk 0:02:59]} 10. Bd3 {[%clk 0:03:03]}  d6 {[%clk 0:02:50]} 11. O-O {[%clk 0:03:02]}  Qg6 {[%clk 0:02:41]} 12. f4 {[%clk 0:02:56]}  f5 {[%clk 0:02:37]} 13. exf5 {[%clk 0:02:23]}  Bxf5 {[%clk 0:02:36]} 14. Bxf5 {[%clk 0:02:16]}  Rxf5 {[%clk 0:02:35]} 15. Nd5 {[%clk 0:01:58]}  Raf8 {[%clk 0:02:31]} 16. g3 {[%clk 0:01:47]}  Kh8 {[%clk 0:02:15]} 17. c3 {[%clk 0:01:40]}  Nxd5 {[%clk 0:02:12]} 18. Qxd5 {[%clk 0:01:38]}  exf4 {[%clk 0:02:13]} 19. Qe4 {[%clk 0:01:01]}  fxg3 {[%clk 0:02:11]} 20. Rxf5 {[%clk 0:01:01]}  gxh2+ {[%clk 0:02:09]} 21. Kxh2 {[%clk 0:00:24]}  Rxf5 {[%clk 0:02:07]} 0-1


[Site "https://www.chess.com"]

[Event "Titled Tuesday Blitz July 4 Early 2023"]
[White "Dobre, Claudiu-Cristian"]
[Black "VoicelessFeather"]
[WhiteFideId "1211854"]
[WhiteElo "2453"]
[BlackElo "2229"]
[Result "1/2-1/2"]
[Round "8"]
[TimeControl "180+2"]
[Date "2023.07.04"]
[WhiteClock "0:00:15"]
[BlackClock "0:00:21"]
[Board "142"]

1. e4 {[%clk 0:03:00]}  e5 {[%clk 0:02:58]} 2. Nf3 {[%clk 0:03:00]}  Nc6 {[%clk 0:02:57]} 3. d4 {[%clk 0:02:59]}  exd4 {[%clk 0:02:57]} 4. Nxd4 {[%clk 0:03:00]}  Nf6 {[%clk 0:02:56]} 5. Nxc6 {[%clk 0:02:59]}  bxc6 {[%clk 0:02:56]} 6. Nd2 {[%clk 0:02:54]}  d5 {[%clk 0:02:52]} 7. exd5 {[%clk 0:02:54]}  cxd5 {[%clk 0:02:52]} 8. Bb5+ {[%clk 0:02:52]}  Bd7 {[%clk 0:02:50]} 9. Bxd7+ {[%clk 0:02:49]}  Qxd7 {[%clk 0:02:48]} 10. O-O {[%clk 0:02:49]}  Be7 {[%clk 0:02:48]} 11. b3 {[%clk 0:02:46]}  O-O {[%clk 0:02:46]} 12. Bb2 {[%clk 0:02:46]}  c5 {[%clk 0:02:46]} 13. Nf3 {[%clk 0:02:42]}  d4 {[%clk 0:02:32]} 14. Re1 {[%clk 0:02:38]}  Bd6 {[%clk 0:02:28]} 15. h3 {[%clk 0:02:32]}  Rfe8 {[%clk 0:02:26]} 16. Qd3 {[%clk 0:02:28]}  h6 {[%clk 0:02:19]} 17. c3 {[%clk 0:02:26]}  dxc3 {[%clk 0:02:06]} 18. Qxc3 {[%clk 0:02:26]}  Bf8 {[%clk 0:02:06]} 19. Rad1 {[%clk 0:02:07]}  Rxe1+ {[%clk 0:02:05]} 20. Qxe1 {[%clk 0:02:07]}  Qf5 {[%clk 0:02:01]} 21. Bxf6 {[%clk 0:01:51]}  Qxf6 {[%clk 0:02:01]} 22. Qe5 {[%clk 0:01:48]}  Qxe5 {[%clk 0:01:53]} 23. Nxe5 {[%clk 0:01:48]}  Re8 {[%clk 0:01:53]} 24. Nc4 {[%clk 0:01:42]}  Re2 {[%clk 0:01:50]} 25. Rd2 {[%clk 0:01:42]}  Re1+ {[%clk 0:01:47]} 26. Kh2 {[%clk 0:01:42]}  Be7 {[%clk 0:01:41]} 27. Rd7 {[%clk 0:01:35]}  Bh4 {[%clk 0:01:35]} 28. g3 {[%clk 0:01:35]}  Bf6 {[%clk 0:01:32]} 29. Rxa7 {[%clk 0:01:13]}  Re2 {[%clk 0:01:31]} 30. Kg1 {[%clk 0:01:06]}  Bd4 {[%clk 0:01:30]} 31. Ra8+ {[%clk 0:00:55]}  Kh7 {[%clk 0:01:30]} 32. Ne3 {[%clk 0:00:55]}  Re1+ {[%clk 0:01:28]} 33. Kg2 {[%clk 0:00:55]}  Bxe3 {[%clk 0:01:25]} 34. fxe3 {[%clk 0:00:55]}  Rxe3 {[%clk 0:01:26]} 35. Ra5 {[%clk 0:00:53]}  Rc3 {[%clk 0:01:22]} 36. g4 {[%clk 0:00:51]}  Kg6 {[%clk 0:01:14]} 37. h4 {[%clk 0:00:48]}  f6 {[%clk 0:01:12]} 38. Rb5 {[%clk 0:00:46]}  Rc2+ {[%clk 0:01:06]} 39. Kg3 {[%clk 0:00:46]}  Rxa2 {[%clk 0:01:06]} 40. Rxc5 {[%clk 0:00:46]}  Rb2 {[%clk 0:01:02]} 41. h5+ {[%clk 0:00:46]}  Kf7 {[%clk 0:01:00]} 42. Rc3 {[%clk 0:00:42]}  Re2 {[%clk 0:00:58]} 43. Kf3 {[%clk 0:00:41]}  Re5 {[%clk 0:00:57]} 44. b4 {[%clk 0:00:40]}  Rb5 {[%clk 0:00:56]} 45. Rc4 {[%clk 0:00:34]}  f5 {[%clk 0:00:55]} 46. Rf4 {[%clk 0:00:25]}  g6 {[%clk 0:00:39]} 47. hxg6+ {[%clk 0:00:19]}  Kxg6 {[%clk 0:00:39]} 48. gxf5+ {[%clk 0:00:17]}  Rxf5 {[%clk 0:00:28]} 49. Kg4 {[%clk 0:00:17]}  h5+ {[%clk 0:00:23]} 50. Kf3 {[%clk 0:00:14]}  Rb5 {[%clk 0:00:22]} 51. Rc4 {[%clk 0:00:14]}  Kg5 {[%clk 0:00:21]} 52. Rc5+ {[%clk 0:00:14]}  Rxc5 {[%clk 0:00:20]} 53. bxc5 {[%clk 0:00:14]}  Kf6 {[%clk 0:00:21]} 54. Kf4 {[%clk 0:00:14]}  Ke6 {[%clk 0:00:21]} 55. Kg5 {[%clk 0:00:15]}  Kd5 {[%clk 0:00:21]} 56. Kxh5 {[%clk 0:00:15]}  Kxc5 {[%clk 0:00:21]} 1/2-1/2


[Site "https://www.chess.com"]

[Event "Titled Tuesday Blitz July 4 Early 2023"]
[White "Czerw, Dawid"]
[Black "Makhmudov, Shukhrat"]
[WhiteFideId "1145746"]
[BlackFideId "14200775"]
[WhiteElo "2572"]
[BlackElo "2383"]
[Result "1-0"]
[Round "8"]
[TimeControl "180+2"]
[Date "2023.07.04"]
[WhiteClock "0:01:26"]
[BlackClock "0:01:37"]
[Board "146"]

1. e4 {[%clk 0:03:00]}  e5 {[%clk 0:02:59]} 2. Nf3 {[%clk 0:03:00]}  Nc6 {[%clk 0:02:59]} 3. Bb5 {[%clk 0:03:01]}  a6 {[%clk 0:03:00]} 4. Ba4 {[%clk 0:03:02]}  Nf6 {[%clk 0:02:59]} 5. d4 {[%clk 0:03:02]}  exd4 {[%clk 0:02:59]} 6. O-O {[%clk 0:03:03]}  b5 {[%clk 0:02:58]} 7. Bb3 {[%clk 0:03:03]}  Be7 {[%clk 0:02:53]} 8. e5 {[%clk 0:02:58]}  Ne4 {[%clk 0:02:52]} 9. Nxd4 {[%clk 0:02:52]}  Nc5 {[%clk 0:02:48]} 10. Nxc6 {[%clk 0:02:48]}  dxc6 {[%clk 0:02:48]} 11. Qf3 {[%clk 0:02:49]}  Nxb3 {[%clk 0:02:43]} 12. axb3 {[%clk 0:02:46]}  Bb7 {[%clk 0:02:38]} 13. Qg4 {[%clk 0:02:40]}  O-O {[%clk 0:02:36]} 14. Bh6 {[%clk 0:02:40]}  g6 {[%clk 0:02:27]} 15. Bxf8 {[%clk 0:02:37]}  Bxf8 {[%clk 0:02:27]} 16. Nc3 {[%clk 0:02:37]}  Qe7 {[%clk 0:02:26]} 17. f4 {[%clk 0:02:35]}  c5 {[%clk 0:02:25]} 18. Rad1 {[%clk 0:02:30]}  Rd8 {[%clk 0:02:24]} 19. Rxd8 {[%clk 0:02:29]}  Qxd8 {[%clk 0:02:24]} 20. Rd1 {[%clk 0:02:29]}  Qe8 {[%clk 0:02:24]} 21. Qd7 {[%clk 0:02:25]}  Qa8 {[%clk 0:02:21]} 22. Rd2 {[%clk 0:02:13]}  Be4 {[%clk 0:02:05]} 23. Nd5 {[%clk 0:02:05]}  c4 {[%clk 0:01:58]} 24. e6 {[%clk 0:01:26]}  Bg7 {[%clk 0:01:37]} 1-0


[Site "https://www.chess.com"]